bitfinex/quotes_ETHUSD_20220212
["timestamp","ask_amount","ask_price","bid_price","bid_amount"]
[1644652267383,0.00852079,2913.4,2913.2,1.38531507]
[1644652267984,0.00852079,2913.4,2913.2,1.08531507]
[1644652268183,0.00852079,2913.4,2913.2,1.38531507]
[1644652268390,0.1420779,2913.6,2913.2,1.38531507]
[1644652268589,0.00852079,2913.4,2913.2,1.38531507]
[1644652269435,0.1420779,2913.6,2913.2,1.38531507]
[1644652269635,0.00786409,2913.4,2913.2,1.38531507]
[1644652270036,0.00786409,2913.4,2913.2,0.78531507]
[1644652270639,0.1420779,2913.6,2913.2,1.08531507]
[1644652270838,0.00786409,2913.4,2913.2,1.08531507]
[1644652271237,0.00786409,2913.4,2913.2,1.38531507]
[1644652271437,0.00786409,2913.4,2913.2,1.08531507]
[1644652271641,0.00786409,2913.4,2913.2,1.38531507]
[1644652271838,0.86924508,2913.5,2913.2,1.38531507]
[1644652272239,0.00786409,2913.4,2913.2,1.38531507]
[1644652272438,0.00786409,2913.4,2913.2,1.08531507]
[1644652272639,0.07306091,2913.3,2913.2,1.08531507]
[1644652272838,0.07306091,2913.3,2913.2,1.38531507]
[1644652273291,0.00786413,2913.4,2913.2,1.38531507]
[1644652273592,0.07306091,2913.3,2913.2,1.38531507]
[1644652275094,0.65194942,2913.3,2913.2,1.38531507]
[1644652275292,0.07306091,2913.3,2913.2,1.38531507]
[1644652276594,0.72551649,2913.3,2913.2,1.38531507]
[1644652278142,0.65245558,2913.3,2913.2,1.38531507]
[1644652278345,0.07306091,2913.3,2913.2,1.38531507]
[1644652278545,0.65302827,2913.3,2913.2,1.38531507]
[1644652278746,0.72608918,2913.3,2913.2,1.38531507]
[1644652278945,0.72608918,2913.3,2913.2,1.41959302]
[1644652279948,0.72608918,2913.3,2913.2,1.26047372]
[1644652280146,0.72608918,2913.3,2913.2,1.11959302]
[1644652280546,0.72608918,2913.3,2913.2,0.03427795]
[1644652280790,0.86924508,2913.3,2913.2,0.03427795]
[1644652280991,0.94230599,2913.3,2913.2,0.03427795]
[1644652281386,0.07306091,2913.3,2913.2,0.03427795]
[1644652281587,0.8704667,2913.3,2913.2,0.03427795]
[1644652281790,0.07306091,2913.4,2913.2,0.03427795]
[1644652281791,0.8784405,2913.4,2913.2,0.03427795]
[1644652281988,0.00387793,2913.6,2913.3,0.1716]
[1644652282192,0.03168627,2913.8,2913.4,1.43527973]
[1644652282388,0.03168627,2913.8,2913.5,0.6676]
[1644652282586,0.03168627,2913.8,2913.6,0.496]
[1644652282788,0.00387793,2914.3,2913.7,0.6676]
[1644652282987,0.87051775,2914.4,2913.7,1.53350708]
[1644652283187,0.87051775,2914.4,2914.2,0.76602394]
[1644652283188,0.00387793,2914.3,2914.2,0.76602394]
[1644652283395,0.87051775,2914.4,2914.2,0.76602394]
[1644652283693,0.87051775,2914.5,2914.2,0.76602394]
[1644652283992,0.87051775,2914.5,2914.2,1.36602394]
[1644652285437,0.0063036,2914.5,2914.2,1.36602394]
[1644652286239,0.87439568,2914.6,2914.2,1.36602394]
[1644652286640,0.00812502,2914.5,2914.2,1.36602394]
[1644652287240,0.87051775,2914.4,2913.7,0.496]
[1644652287445,0.00387793,2914.6,2913.7,0.496]
[1644652287446,0.87439568,2914.3,2913.7,0.496]
[1644652287641,0.87051775,2914.3,2913.7,0.796]
[1644652287841,0.01200317,2914.2,2913.7,0.796]
[1644652288292,0.01200317,2914.2,2914.0,0.68945363]
[1644652288495,0.00812524,2914.2,2914.0,0.68945363]
[1644652288693,0.87051775,2914.3,2914.0,0.98945363]
[1644652288891,0.87051775,2914.3,2914.0,0.68945363]
[1644652289092,0.00812521,2914.2,2914.0,0.68945363]
[1644652289894,0.87051775,2914.3,2914.0,0.68945363]
[1644652290294,0.00852018,2914.2,2914.0,0.68945363]
[1644652291095,0.00387793,2914.3,2914.0,0.68557418]
[1644652291295,0.87051775,2914.4,2914.0,0.68557418]
[1644652291497,0.00852018,2914.2,2914.0,0.68557418]
[1644652292239,0.00387793,2914.3,2914.0,0.68557418]
[1644652292442,0.87051775,2914.3,2913.6,0.1715]
[1644652292645,0.00852018,2914.2,2913.6,0.1715]
[1644652292843,0.00852018,2914.2,2913.6,0.4715]
[1644652293045,0.00852018,2914.2,2913.6,0.3]
[1644652293248,0.00852018,2914.2,2913.4,0.4715]
[1644652293447,0.00852018,2914.2,2914.0,0.77467063]
[1644652293651,0.87439568,2914.3,2914.0,0.77467063]
[1644652293848,0.87051775,2914.3,2914.0,0.77467063]
[1644652294250,0.87051775,2914.3,2914.1,0.03383694]
[1644652294450,0.90459427,2914.4,2914.1,0.03383694]
[1644652294848,0.87051775,2914.4,2914.1,0.03383694]
[1644652295048,0.87903782,2914.4,2914.1,0.03383694]
[1644652295887,0.87051775,2914.4,2914.1,0.03383694]
[1644652296288,0.87903782,2914.4,2914.1,0.03383694]
[1644652296688,0.83566113,2914.3,2914.1,0.03383694]
[1644652296892,6.29017914,2914.4,2914.1,3.694e-05]
[1644652297089,6.29017914,2914.4,2912.9,0.25]
[1644652297090,0.01753795,2914.0,2913.2,0.1715]
[1644652297289,1.72577349,2913.9,2912.7,0.1716]
[1644652297588,1.72577349,2913.9,2912.8,1.40497803]
[1644652297589,1.20067793,2913.8,2912.8,1.40497803]
[1644652297792,1.20067793,2913.8,2912.9,0.1716]
[1644652298190,1.20067793,2913.8,2912.7,0.1716]
[1644652298392,1.20067793,2913.8,2913.4,0.84763493]
[1644652298592,0.00387793,2913.8,2913.4,0.84763493]
[1644652298792,0.00852061,2913.5,2913.4,0.84763493]
[1644652298993,0.00852061,2913.5,2912.7,0.1716]
[1644652299193,0.00852061,2913.5,2912.8,1.40529494]
[1644652299644,0.00387793,2913.5,2912.8,1.70529494]
[1644652299843,0.0123981,2913.5,2912.8,0.3]
[1644652300043,0.07305011,2913.4,2913.3,0.80172586]
[1644652300548,0.07305011,2913.4,2913.3,0.6]
[1644652300742,0.07305011,2913.4,2912.7,1.7716]
[1644652300944,0.07305011,2913.3,2912.8,1.39779778]
[1644652301144,0.07305011,2913.2,2912.9,0.1716]
[1644652301345,0.07305011,2913.1,2912.9,0.1716]
[1644652301545,0.01239854,2913.5,2913.0,0.71924683]
[1644652301745,0.01239854,2913.5,2913.1,0.1716]
[1644652301946,0.07305021,2913.4,2913.1,0.1716]
[1644652302145,0.07305021,2913.3,2913.1,0.1716]
[1644652302346,0.07305021,2913.2,2913.0,0.6]
[1644652302550,0.07305021,2913.1,2912.5,10.24881274]
[1644652302747,0.07305021,2913.0,2912.5,4.12941274]
[1644652302948,0.07305021,2912.9,2912.5,0.17901274]
[1644652303199,0.07305021,2912.9,2912.5,0.1716]
[1644652303395,0.07305021,2912.9,2912.5,0.00741274]
[1644652303594,0.07305021,2912.8,2912.5,0.00741274]
[1644652303794,0.07305021,2912.7,2912.5,0.00741274]
[1644652303995,0.07305021,2912.6,2912.5,0.00741274]
[1644652304194,0.72381263,2913.3,2912.5,2.13975926]
[1644652304495,0.72381263,2913.3,2912.6,1.39472528]
[1644652304696,0.07305021,2913.2,2912.6,1.39472528]
[1644652304895,0.07305021,2913.1,2912.6,2.39472528]
[1644652305095,0.07305021,2913.0,2912.7,1.39472528]
[1644652305295,0.07305021,2912.9,2912.7,2.69472528]
[1644652305495,1.1419,2913.4,2912.8,1.39472528]
[1644652305699,0.07305239,2913.3,2912.8,1.99472528]
[1644652306094,0.07305239,2913.3,2912.8,0.6]
[1644652306297,0.07305239,2913.3,2912.8,0.3]
[1644652306495,0.07305239,2913.3,2912.6,0.1716]
[1644652306947,0.07305239,2913.3,2912.9,0.77467937]
[1644652308148,0.72381481,2913.3,2912.9,0.77467937]
[1644652308751,0.07305239,2913.3,2912.9,0.77467937]
[1644652308951,0.07305239,2913.2,2912.9,0.77467937]
[1644652309152,0.07305239,2913.1,2912.9,0.77467937]
[1644652309451,0.07305239,2913.0,2912.9,0.77467937]
[1644652309956,0.85858,2913.1,2912.9,0.77467937]
[1644652310255,0.07305239,2913.0,2912.9,0.72467937]
[1644652311300,0.07305239,2913.0,2912.8,0.03103165]
[1644652312699,0.07305239,2913.0,2912.8,0.72969169]
[1644652312900,0.07305239,2913.0,2912.8,0.03103165]
[1644652314104,0.07305239,2913.0,2912.6,0.74650889]
[1644652314541,0.07305239,2913.0,2912.6,1.04650889]
[1644652315549,0.07305239,2912.9,2912.6,1.04650889]
[1644652315746,0.07305239,2912.8,2912.6,1.04650889]
[1644652316050,0.07305239,2912.7,2912.6,1.04650889]
[1644652316448,0.65076242,2913.2,2912.6,2.43682505]
[1644652316650,0.65076242,2913.2,2912.6,1.04650889]
[1644652318698,0.65076242,2913.2,2912.8,0.02682573]
[1644652319097,0.07305239,2913.1,2912.8,0.02682573]
[1644652319296,0.07305239,2913.0,2912.8,0.02682573]
[1644652319498,0.07305239,2912.9,2912.8,0.02682573]
[1644652319900,0.72381481,2913.3,2912.8,0.02682573]
[1644652320101,0.07305239,2913.2,2912.8,0.02682573]
[1644652320300,0.07305239,2913.1,2912.8,0.02682573]
[1644652320501,0.07305239,2913.0,2912.7,0.3]
[1644652320702,0.07305239,2912.9,2912.7,0.3]
[1644652320902,0.07305239,2912.8,2912.7,0.3]
[1644652321307,0.72381481,2913.3,2912.7,1.68491208]
[1644652321505,0.72381481,2913.3,2913.2,0.66923318]
[1644652321506,0.65076242,2913.3,2913.2,0.66923318]
[1644652321706,0.72381773,2913.3,2912.8,0.1716]
[1644652321944,0.72381773,2913.3,2912.7,0.3]
[1644652322145,0.72381773,2913.3,2912.6,0.21949227]
[1644652322345,0.72381773,2913.3,2912.2,0.1716]
[1644652322346,0.72381773,2913.3,2912.7,1.38491067]
[1644652322546,0.72381773,2913.3,2912.2,0.1716]
[1644652322747,0.72381773,2913.3,2913.2,0.89129296]
[1644652323645,0.72381773,2913.3,2912.3,1.2038]
[1644652323646,0.72381773,2913.3,2912.3,1.8038]
[1644652323852,0.72381773,2913.3,2912.8,0.02691401]
[1644652324449,0.65076242,2913.3,2912.8,0.02691401]
[1644652324849,0.65076242,2913.3,2913.0,0.63672933]
[1644652325051,0.72381825,2913.3,2913.0,0.63672933]
[1644652325249,0.72381825,2913.3,2913.0,0.93672933]
[1644652325451,0.72381825,2913.3,2913.0,1.23672933]
[1644652325700,0.72381825,2913.3,2913.0,0.93672933]
[1644652325890,0.72381825,2913.3,2913.0,1.23672933]
[1644652326294,0.07305583,2913.2,2913.0,1.23672933]
[1644652326496,0.07305583,2913.1,2913.0,1.23672933]
[1644652326695,0.07305583,2913.4,2913.0,1.23672933]
[1644652327495,0.07305583,2913.3,2913.0,1.23672933]
[1644652327696,0.07305583,2913.2,2913.1,0.1716]
[1644652328097,0.08157611,2913.5,2913.1,0.1716]
[1644652328300,0.07305583,2913.4,2913.1,0.1716]
[1644652328501,0.07305583,2913.3,2913.1,0.1716]
[1644652328700,0.09225439,2913.2,2913.1,0.1716]
[1644652330341,0.00786373,2913.5,2913.2,3.0]
[1644652330542,0.00786373,2913.5,2913.3,0.1716]
[1644652330743,0.00786373,2913.5,2913.3,1.1716]
[1644652330941,0.00387793,2913.8,2913.3,1.1716]
[1644652331141,0.66830037,2914.0,2913.3,1.1716]
[1644652331142,0.00786421,2913.5,2913.3,1.1716]
[1644652331341,0.00786421,2913.5,2913.3,0.1716]
[1644652331541,0.00786421,2913.5,2913.3,1.1716]
[1644652332141,0.00387793,2913.8,2913.3,1.1716]
[1644652332339,0.00786421,2913.5,2913.3,1.1716]
[1644652333298,0.00387793,2913.8,2913.3,1.1716]
[1644652333495,0.00786421,2913.5,2913.4,3.51511175]
[1644652333697,0.00786421,2913.5,2913.4,0.74190991]
[1644652333896,0.00786421,2913.5,2913.4,1.74190991]
[1644652334194,0.00786421,2913.5,2913.4,2.04190991]
[1644652334399,0.65076242,2913.9,2913.4,1.04190991]
[1644652334696,0.00792857,2913.6,2913.4,1.04190991]
[1644652334894,0.00792857,2913.6,2913.5,0.3]
[1644652335695,0.00387793,2913.8,2913.5,0.3]
[1644652335898,0.65076242,2913.9,2913.5,0.3]
[1644652335899,0.00792849,2913.7,2913.5,0.3]
[1644652336946,0.65076242,2913.9,2913.5,0.3]
[1644652337147,0.02141588,2914.0,2913.5,0.3]
[1644652337148,0.00792845,2913.7,2913.5,0.3]
[1644652337949,0.00792845,2913.7,2913.5,3.84771622]
[1644652338253,0.00792201,2913.7,2913.6,0.496]
[1644652338452,0.00792201,2913.7,2913.6,1.6676]
[1644652338751,0.00792201,2913.7,2913.6,5.51956823]
[1644652339250,0.01753795,2914.0,2913.6,5.51956823]
[1644652339456,0.00792197,2913.8,2913.6,5.34796823]
[1644652339652,0.00792197,2913.8,2913.6,2.4698]
[1644652340454,0.01753795,2914.0,2913.7,0.3]
[1644652340695,0.01753795,2914.0,2913.8,0.496]
[1644652340994,0.01753795,2914.0,2913.9,0.7240615]
[1644652341193,0.01753795,2914.0,2913.9,0.62563896]
[1644652341396,0.01753795,2914.0,2913.9,0.92563896]
[1644652345546,0.01753795,2914.0,2913.9,1.92563896]
[1644652345751,0.01753795,2914.0,2913.9,0.92563896]
[1644652347854,0.01753795,2914.0,2913.9,1.92563896]
[1644652348802,0.05312101,2914.0,2913.9,0.92563896]
[1644652349102,0.05312101,2914.0,2913.9,1.92563896]
[1644652349303,0.05312101,2914.0,2913.9,0.92563896]
[1644652351504,0.05312101,2914.0,2913.9,4.47864293]
[1644652351961,0.05312101,2914.0,2913.9,1.92563896]
[1644652352160,0.05312101,2914.0,2913.9,5.51286731]
[1644652352363,0.00790013,2914.1,2913.9,7.37108116]
[1644652352562,0.65076242,2915.0,2914.0,7.53965197]
[1644652352563,0.00387793,2915.0,2914.0,7.53965197]
[1644652352765,0.00792479,2914.1,2914.0,7.47743812]
[1644652352961,0.00792479,2914.1,2914.0,8.83919269]
[1644652353162,0.00792479,2914.1,2914.0,7.47743812]
[1644652353765,0.65464035,2915.1,2914.0,7.39075326]
[1644652353969,0.00792471,2914.2,2914.1,1.83957699]
[1644652354170,0.0316941,2914.6,2914.1,11.4721912]
[1644652354373,0.0316941,2914.6,2914.2,2.34357699]
[1644652354568,0.0316941,2914.6,2914.3,4.2990303]
[1644652354767,0.0316941,2914.6,2914.5,0.71933227]
[1644652354971,0.10525108,2915.3,2914.5,4.81195986]
[1644652355169,0.10137315,2915.2,2914.5,5.11195986]
[1644652355370,0.00387793,2915.1,2914.6,1.0]
[1644652355570,0.10525108,2915.1,2914.6,1.0]
[1644652355798,0.10525108,2915.1,2914.6,0.3]
[1644652355997,0.10137315,2915.0,2914.6,0.3]
[1644652356200,0.10137315,2915.0,2914.5,1.81533227]
[1644652356399,0.10137315,2914.9,2914.5,1.81533227]
[1644652356599,0.10525108,2914.9,2914.5,1.81533227]
[1644652356799,0.10137315,2914.8,2914.5,5.37027278]
[1644652357099,0.0079273,2915.0,2914.5,1.81533227]
[1644652357298,0.00387793,2915.3,2914.5,4.62487205]
[1644652357299,0.10127059,2914.9,2914.5,4.62487205]
[1644652357502,0.00387793,2915.3,2914.6,0.76843049]
[1644652357503,0.10919805,2914.8,2914.6,0.76843049]
[1644652357701,0.10127059,2914.7,2914.5,0.6]
[1644652357902,0.10127059,2914.7,2914.0,3.97167896]
[1644652358105,0.00387793,2914.6,2914.0,3.97167896]
[1644652358303,0.10127059,2914.7,2914.0,3.97167896]
[1644652358504,0.00387793,2914.6,2914.0,3.97167896]
[1644652358704,0.10127059,2914.9,2914.6,0.02904317]
[1644652359112,0.10127059,2914.9,2914.6,4.317e-05]
[1644652359113,0.75203301,2914.9,2914.6,4.317e-05]
[1644652359306,0.75203301,2914.9,2913.8,0.25]
[1644652359307,0.17539175,2914.8,2913.8,0.25]
[1644652359546,0.17539175,2914.8,2913.6,3.9949]
[1644652359547,0.65012593,2914.5,2913.6,3.9949]
[1644652359747,0.00389175,2914.4,2913.5,1.0]
[1644652359948,0.01181955,2914.4,2913.5,1.00743]
[1644652360153,0.01181955,2914.4,2914.0,0.73762854]
[1644652360154,0.10127059,2914.3,2914.0,0.73762854]
[1644652360953,0.10127059,2914.3,2913.5,1.6]
[1644652361252,0.10516234,2914.2,2913.5,1.60743]
[1644652361453,0.10127059,2914.1,2913.5,1.60743]
[1644652361654,0.10127059,2914.0,2913.5,1.60743]
[1644652361852,0.10127059,2913.9,2913.5,1.60743]
[1644652362054,0.00389175,2914.3,2913.6,0.71801786]
[1644652362252,0.00389175,2914.3,2913.6,0.60814605]
[1644652362452,0.01181875,2914.3,2913.6,0.60814605]
[1644652362655,0.95952059,2914.2,2913.6,0.60814605]
[1644652362852,0.10516234,2914.1,2913.6,0.60814605]
[1644652366199,0.00389175,2914.1,2913.7,1.3145611]
[1644652366400,0.00792127,2914.3,2913.7,1.6145611]
[1644652366401,0.10127059,2914.2,2913.7,1.6145611]
[1644652366599,0.10516234,2914.1,2913.8,1.3145611]
[1644652366800,0.10127059,2914.0,2913.8,1.4860611]
[1644652367043,0.10127059,2913.9,2913.8,0.1715]
[1644652367343,0.10127059,2913.9,2913.8,1.48602261]
[1644652367543,0.00792147,2914.3,2913.8,0.1715]
[1644652367743,0.10127059,2914.2,2913.8,0.1715]
[1644652367946,0.10127059,2914.1,2913.8,0.1715]
[1644652368147,0.10127059,2914.0,2913.8,0.4715]
[1644652368349,0.10127059,2913.9,2913.8,0.4715]
[1644652368550,0.00792196,2914.3,2913.8,1.78629848]
[1644652368751,0.00792196,2914.3,2913.8,0.7715]
[1644652368752,0.10127059,2914.2,2913.8,0.7715]
[1644652368951,0.00792196,2914.3,2913.9,5.42222878]
[1644652369152,0.13606497,2914.2,2914.0,1.4876491]
[1644652369350,0.13606497,2914.2,2914.1,1.3161491]
[1644652369550,0.00792215,2914.3,2914.1,1.3161491]
[1644652369751,0.00792215,2914.3,2914.1,1.6161491]
[1644652369752,0.13606497,2914.2,2914.1,1.6161491]
[1644652370900,0.13606497,2914.2,2914.1,2.6161491]
[1644652371299,0.13606497,2914.2,2914.1,3.28121057]
[1644652371901,0.00389175,2914.7,2914.6,0.73610402]
[1644652372101,0.65012593,2914.8,2914.6,0.73610402]
[1644652372301,0.65012593,2914.8,2914.6,1.33610402]
[1644652372501,0.78619676,2914.7,2914.6,1.33610402]
[1644652373104,0.65012593,2914.7,2914.6,1.33610402]
[1644652373307,0.78619676,2914.7,2914.6,0.6]
[1644652373506,0.78619676,2914.7,2913.9,1.496]
[1644652373707,0.00389175,2914.6,2914.0,1.31732254]
[1644652374007,0.00389175,2914.6,2914.0,1.61732254]
[1644652374207,0.13996258,2914.6,2914.1,1.31732254]
[1644652374443,0.00389175,2914.6,2914.5,0.78005464]
[1644652374646,0.65012593,2914.7,2914.5,1.08005464]
[1644652374844,0.65012593,2914.7,2914.5,1.38005464]
[1644652375648,0.65012593,2914.6,2914.5,1.38005464]
[1644652376043,0.77823026,2914.6,2914.5,1.38005464]
[1644652376449,0.12810433,2914.6,2914.5,1.38005464]
[1644652377052,0.12810433,2914.6,2914.5,1.87605464]
[1644652377249,0.12810433,2914.6,2914.5,3.37360225]
[1644652377651,0.12810433,2914.6,2914.5,4.37360225]
[1644652379105,0.65012593,2915.1,2914.5,4.37360225]
[1644652379304,0.00792201,2914.7,2914.6,2.49754761]
[1644652379501,0.00792201,2914.7,2914.6,2.99354761]
[1644652379703,0.13602634,2914.7,2914.6,2.99354761]
[1644652379903,0.00792201,2914.7,2914.6,2.99354761]
[1644652380103,0.12810433,2914.7,2914.6,2.99354761]
[1644652380709,0.00792193,2914.8,2914.6,2.99354761]
[1644652380909,0.00792193,2914.8,2914.6,1.6675]
[1644652381105,0.00792193,2914.8,2914.7,1.29842854]
[1644652381305,0.15534219,2914.8,2914.7,2.89842854]
[1644652381504,0.16326409,2914.8,2914.7,2.89842854]
[1644652381703,0.16326409,2914.8,2914.7,1.89842854]
[1644652381949,0.16326409,2914.8,2914.7,2.8983867]
[1644652382350,0.16326409,2914.8,2914.7,1.59417297]
[1644652382551,0.15534219,2914.8,2914.7,0.87244191]
[1644652382751,2.51995907,2915.6,2914.5,0.78005464]
[1644652382957,2.51995907,2915.6,2914.6,13.83730298]
[1644652382958,0.00390807,2915.1,2914.6,13.83730298]
[1644652383153,1.0128642,2915.5,2914.6,13.83730298]
[1644652383154,0.14174074,2915.0,2914.7,1.31210298]
[1644652383356,0.00390807,2916.0,2914.9,3.3]
[1644652383559,4.57016714,2916.2,2915.0,0.1713]
[1644652383755,0.00390807,2916.2,2915.1,1.15476734]
[1644652383955,0.00390807,2916.2,2915.2,0.1713]
[1644652384157,0.00390807,2916.2,2915.3,0.496]
[1644652384354,0.00390807,2916.2,2915.4,0.1713]
[1644652384555,0.00390807,2916.2,2915.5,0.496]
[1644652384756,0.00390807,2916.2,2915.5,0.796]
[1644652385155,0.00390807,2916.2,2915.5,1.096]
[1644652385794,0.00390807,2916.2,2915.6,0.67014482]
[1644652385994,0.00390807,2916.2,2916.1,0.84273107]
[1644652386203,0.00390807,2916.6,2915.5,1.096]
[1644652386398,0.00390807,2916.2,2915.5,1.096]
[1644652386596,0.00854293,2916.0,2915.5,1.096]
[1644652387194,0.00854293,2916.0,2915.6,0.8554665]
[1644652387395,0.00390807,2916.6,2915.6,0.8554665]
[1644652387595,0.00390807,2916.6,2916.2,0.74701796]
[1644652387596,0.03416708,2916.3,2916.2,0.74701796]
[1644652388705,0.00390807,2916.6,2916.2,0.74701796]
[1644652388903,0.00626728,2916.4,2916.2,0.74701796]
[1644652389104,0.87055059,2916.9,2916.2,0.74701796]
[1644652389105,1.73620433,2917.4,2916.5,3.3]
[1644652389303,1.26856172,2918.4,2917.3,5.0]
[1644652389304,1.30267854,2918.4,2917.3,5.0]
[1644652389550,2.05899007,2919.1,2917.7,1.64772307]
[1644652389551,3.36129889,2919.1,2917.7,1.64772307]
[1644652389750,0.61539451,2920.2,2918.9,6.198]
[1644652389751,1.73660731,2919.6,2918.9,6.198]
[1644652389954,5.20343,2920.8,2918.9,0.7915]
[1644652389955,0.07828575,2919.5,2918.9,0.7915]
[1644652390153,1.81489306,2919.8,2919.0,0.496]
[1644652390351,0.04945284,2920.1,2919.6,6.198]
[1644652390552,0.04945284,2920.1,2919.6,0.496]
[1644652390756,0.04945284,2920.1,2919.0,10.698]
[1644652390757,0.04888441,2920.0,2919.2,0.496]
[1644652390954,0.04888441,2920.0,2919.0,3.5]
[1644652391156,0.15867736,2920.1,2919.0,3.5]
[1644652391157,5.04831599,2919.9,2919.0,3.5]
[1644652391362,0.63877219,2919.8,2919.0,3.5]
[1644652391555,0.68651976,2919.8,2919.0,3.5]
[1644652391755,0.04717914,2919.7,2919.0,3.5]
[1644652391955,0.1681,2919.6,2919.0,3.5]
[1644652392155,0.1681,2919.6,2919.1,0.3]
[1644652392156,0.04661072,2919.6,2919.1,0.3]
[1644652392354,0.05460881,2919.5,2919.1,1.3]
[1644652392556,0.05460881,2919.5,2919.1,0.4711]
[1644652392760,0.04547387,2919.4,2919.0,4.4229574]
[1644652392959,0.04547387,2919.4,2919.1,3.5]
[1644652393219,0.04490545,2919.3,2919.1,3.5]
[1644652393424,0.04490545,2919.3,2919.1,3.45]
[1644652393720,0.04433703,2919.2,2919.1,3.45]
[1644652393921,0.83299132,2919.2,2919.1,3.45]
[1644652394320,0.04433703,2919.2,2919.1,3.45]
[1644652394524,0.04433703,2919.2,2919.1,2.2671]
[1644652394721,0.04433703,2919.2,2919.1,2.5432]
[1644652394921,0.04433703,2919.2,2919.1,6.0432]
[1644652395321,0.04433703,2919.2,2919.1,5.5472]
[1644652395521,0.1711,2920.0,2919.3,3.3]
[1644652395723,0.1711,2920.0,2919.4,7.896]
[1644652395921,0.1711,2920.0,2919.5,6.198]
[1644652396122,0.1711,2920.0,2919.6,0.496]
[1644652396326,0.1711,2920.0,2919.6,1.796]
[1644652396723,0.1711,2920.0,2919.7,3.5]
[1644652396949,0.1711,2920.0,2919.8,1.496]
[1644652397154,0.1711,2920.0,2919.8,2.096]
[1644652397354,0.1711,2920.0,2919.8,0.796]
[1644652397756,0.84385995,2920.5,2919.9,3.5]
[1644652397953,0.84385995,2920.5,2920.1,3.5]
[1644652398355,0.84385995,2920.5,2920.2,1.0]
[1644652398556,0.84385995,2920.5,2920.1,3.5]
[1644652398759,0.84385995,2920.5,2920.2,3.8]
[1644652399458,0.84385995,2920.5,2920.2,3.75]
[1644652399658,0.8500841,2920.5,2920.2,3.75]
[1644652400059,0.00622415,2920.5,2920.2,3.75]
[1644652400458,0.00622415,2920.5,2920.3,1.0]
[1644652400700,0.00391709,2921.5,2920.5,3.5]
[1644652400905,0.02489287,2920.9,2920.8,0.84280391]
[1644652401100,0.02489287,2920.9,2920.8,1.14280391]
[1644652401500,0.02489287,2920.9,2920.8,1.44280391]
[1644652401704,0.89443541,2921.0,2920.8,1.44280391]
[1644652401903,0.89443541,2921.0,2920.8,4.94280391]
[1644652402101,0.90065956,2921.0,2920.8,3.5]
[1644652402506,0.90065956,2921.0,2919.8,0.1711]
[1644652402705,0.00391709,2920.9,2919.5,0.496]
[1644652402911,5.22504524,2921.7,2919.9,0.496]
[1644652402912,0.00391709,2921.2,2919.9,0.496]
[1644652403106,1.1755,2921.7,2919.9,0.496]
[1644652403107,0.00391709,2921.6,2920.0,0.1711]
[1644652403306,3.50391709,2921.6,2920.1,0.496]
[1644652403512,0.00858358,2920.3,2920.2,0.1711]
[1644652403706,0.00858358,2920.3,2919.6,0.00792607]
[1644652404107,0.01250067,2920.3,2919.7,0.1711]
[1644652404313,0.00391709,2920.3,2919.7,0.1711]
[1644652404569,0.0062064,2920.1,2919.6,0.1711]
[1644652404768,0.0062064,2920.1,2919.6,0.6671]
[1644652405369,0.87632623,2920.3,2919.6,1.2671]
[1644652405570,0.00391709,2920.2,2919.6,1.2671]
[1644652405771,0.0062064,2920.0,2919.6,1.2671]
[1644652406172,0.02482067,2920.6,2919.6,1.2671]
[1644652406173,0.02482067,2920.6,2919.7,3.3]
[1644652406375,0.02482067,2920.6,2919.9,0.85595]
[1644652406573,5.0,2922.0,2920.1,6.198]
[1644652406774,5.0,2922.0,2920.2,0.796]
[1644652406977,1.1617,2922.2,2920.2,1.9288]
[1644652407173,1.1617,2922.2,2920.2,1.9296]
[1644652407174,1.01640582,2921.5,2920.2,1.9296]
[1644652407372,1.01640582,2921.5,2920.2,0.9288]
[1644652407573,1.01640582,2921.5,2920.3,0.1711]
[1644652407774,1.01640582,2921.5,2920.4,0.496]
[1644652407973,1.01640582,2921.5,2920.5,0.1711]
[1644652408195,0.00620204,2921.0,2920.5,0.6671]
[1644652408399,0.00620204,2921.0,2920.5,0.9671]
[1644652408697,0.00620204,2921.0,2920.5,1.2671]
[1644652409000,0.1711,2921.5,2920.5,1.2671]
[1644652409199,0.1711,2922.1,2920.5,1.2671]
[1644652409502,0.00620204,2920.9,2920.5,2.2671]
[1644652409699,0.00620204,2920.9,2920.5,1.2671]
[1644652410298,0.68815814,2921.5,2920.5,1.2671]
[1644652410500,0.00857351,2920.8,2920.5,1.2671]
[1644652411404,4.1952003,2922.1,2920.5,1.2671]
[1644652411600,0.00857355,2920.8,2920.5,1.2671]
[1644652411801,0.00857355,2920.8,2920.5,1.096]
[1644652412650,0.7677249,2921.3,2920.5,1.096]
[1644652412950,0.00857355,2920.8,2920.5,1.096]
[1644652415051,0.7677249,2921.3,2920.5,1.096]
[1644652415251,0.1185,2922.0,2920.5,1.096]
[1644652415451,0.00857355,2920.8,2920.5,1.096]
[1644652415705,0.00857355,2920.8,2920.5,1.95196]
[1644652415905,0.03428905,2921.2,2920.8,0.01684577]
[1644652417309,3.5,2922.0,2920.9,0.6671]
[1644652417709,3.5,2922.0,2920.9,0.9671]
[1644652418097,0.7976418,2921.8,2920.9,0.9671]
[1644652418298,3.5,2922.0,2920.9,0.9671]
[1644652418899,3.5,2922.0,2920.9,0.796]
[1644652419297,0.66829422,2921.8,2920.9,0.796]
[1644652419737,0.66829422,2921.8,2921.0,0.1711]
[1644652419941,0.66829422,2921.8,2920.9,0.796]
[1644652420140,0.00857298,2921.5,2920.9,0.796]
[1644652421036,0.66829422,2921.8,2920.9,0.796]
[1644652421237,0.0085731,2921.3,2920.9,0.796]
[1644652421838,0.0085731,2921.3,2921.0,0.136]
[1644652422038,7.31e-05,2921.3,2921.1,0.496]
[1644652422237,0.00393267,2922.1,2921.1,0.796]
[1644652422443,0.00393267,2922.1,2921.2,0.1312]
[1644652422639,1.1617,2922.2,2921.3,0.6671]
[1644652422839,0.00393905,2922.1,2921.3,0.9671]
[1644652423044,0.00393905,2922.4,2921.4,0.132]
[1644652423302,0.85577,2923.4,2921.4,0.132]
[1644652423303,0.001,2923.2,2922.1,6.198]
[1644652423503,0.1182,2923.5,2922.1,6.198]
[1644652423504,0.1182,2923.5,2922.5,6.198]
[1644652423698,0.1182,2923.5,2922.6,0.667]
[1644652423898,0.1182,2923.5,2922.6,2.676693]
[1644652424098,0.1182,2923.5,2922.7,0.1392]
[1644652424298,0.1182,2923.5,2922.8,0.667]
[1644652424497,0.1182,2923.5,2922.8,1.52228]